bitfinex-derivatives/quotes_ETHF0:USTF0_20260104
["timestamp","ask_amount","ask_price","bid_price","bid_amount"]
[1767521953694,0.14017052,3145.7,3144.2,0.13462152]
[1767521953894,0.15898,3146.3,3144.7,0.70683165]
[1767521954090,0.15898,3146.3,3144.4,0.13462152]
[1767521954397,0.00476636,3145.7,3144.5,0.13462152]
[1767521956095,0.00476636,3145.7,3144.5,6.13462152]
[1767521956398,0.00476636,3145.7,3144.6,0.13462152]
[1767521965702,0.15898,3146.3,3144.6,0.13462152]
[1767521966700,0.00476636,3145.8,3144.6,0.13462152]
[1767521969895,0.00476636,3145.8,3144.6,40.93462152]
[1767521970609,0.00476636,3145.8,3144.7,9.83121551]
[1767521972910,0.00476636,3145.8,3144.8,0.14521551]
[1767521976521,0.00476636,3145.8,3144.9,0.706249]
[1767521980225,0.00476636,3145.8,3144.9,0.83986518]
[1767521982327,0.00049706,3145.8,3145.0,0.13361618]
[1767521984625,0.00049706,3145.8,3145.2,0.83986518]
[1767521984819,0.15898,3146.3,3145.2,0.83986518]
[1767521985830,0.15898,3146.3,3145.4,0.00476636]
[1767521986224,0.00476636,3146.2,3145.4,0.00476636]
[1767521986730,6.0,3146.1,3145.4,0.00476636]
[1767521987327,0.00476636,3146.2,3145.4,0.00476636]
[1767521987722,0.00476636,3146.2,3145.5,0.706249]
[1767521989526,0.00325635,3146.5,3145.8,0.706249]
[1767521989727,0.00325635,3146.5,3145.8,0.70994062]
[1767521990033,0.00325635,3146.5,3145.8,0.00369162]
[1767521991535,0.00802271,3146.5,3145.8,0.00369162]
[1767522006343,0.00802271,3146.5,3145.4,0.00476636]
[1767522006344,6.00802271,3146.5,3145.4,0.00476636]
[1767522006547,0.706249,3146.4,3145.4,0.00476636]
[1767522006751,0.16699271,3146.5,3145.4,0.00476636]
[1767522007350,0.16699271,3146.5,3145.4,0.00705889]
[1767522014956,0.15898,3146.4,3145.4,0.00705889]
[1767522015152,6.865229,3146.4,3145.4,0.00705889]
[1767522016851,0.865229,3146.4,3145.4,0.00705889]
[1767522021354,0.13976244,3145.7,3144.5,5.60333017]
[1767522021557,0.15902,3145.6,3144.4,0.84842694]
[1767522021952,0.15902,3145.6,3144.5,0.14217794]
[1767522022451,4.72875244,3146.1,3144.7,0.00476636]
[1767522022844,0.159,3146.0,3144.7,0.00476636]
[1767522024765,0.865249,3145.9,3144.7,0.00476636]
[1767522024960,0.15901,3145.8,3144.7,0.00476636]
[1767522025260,0.865269,3145.6,3143.9,0.14217794]
[1767522025460,0.865269,3145.6,3144.0,0.14217794]
[1767522026359,0.865269,3145.6,3144.0,0.14464922]
[1767522028060,0.865269,3145.6,3144.3,0.14217794]
[1767522028767,0.865269,3145.6,3144.6,0.00476636]
[1767522029863,0.706249,3145.3,3144.0,0.00247128]
[1767522030059,0.706249,3145.0,3144.0,0.00247128]
[1767522031168,0.00476636,3144.8,3144.2,0.00476636]
[1767522040370,0.00476636,3144.8,3144.2,0.14531103]
[1767522040570,0.15902,3145.6,3144.2,0.14531103]
[1767522041665,0.00476636,3145.2,3144.2,0.14531103]
[1767522051385,0.15897,3146.6,3144.4,0.14054467]
[1767522051892,0.15897,3146.6,3144.5,40.8]
[1767522052189,0.15897,3146.6,3144.6,0.14054467]
[1767522052382,0.00476636,3145.8,3144.6,0.14054467]
[1767522061588,0.00476636,3145.8,3144.8,0.14294892]
[1767522080411,0.00049757,3145.8,3144.8,0.14294892]
[1767522084414,0.15898,3146.4,3144.8,0.14294892]
[1767522085108,0.00325635,3146.5,3145.2,0.14294892]
[1767522088209,0.00325635,3146.5,3145.2,0.5613476]
[1767522088411,0.00325635,3146.5,3145.3,0.14294892]
[1767522088608,0.00325635,3146.5,3145.3,0.30197892]
[1767522089106,0.00325635,3146.5,3145.4,0.14294892]
[1767522091014,5.20892,3147.6,3145.6,0.13352847]
[1767522091212,0.15892,3147.6,3146.1,0.13352847]
[1767522091918,0.15892,3147.6,3146.5,0.00476636]
[1767522092127,0.16268514,3147.6,3146.5,0.00799924]
[1767522096421,6.0,3147.5,3146.5,0.00799924]
[1767522098024,0.00317764,3147.3,3146.5,0.00799924]
[1767522099025,0.00376514,3147.6,3146.7,0.70555342]
[1767522099414,0.00376514,3147.6,3146.7,0.83826222]
[1767522102229,0.00376514,3147.6,3146.7,0.1327088]
[1767522102718,0.00376514,3147.6,3146.9,0.83826222]
[1767522105324,0.00376514,3147.6,3147.0,0.1327088]
[1767522107127,0.15887,3148.6,3147.3,0.1327088]
[1767522107525,0.15887,3148.5,3147.3,0.1327088]
[1767522107829,0.70555342,3148.1,3146.9,0.1327088]
[1767522112035,0.70555342,3148.1,3146.5,0.14070804]
[1767522114829,0.15889,3148.2,3146.7,0.1327088]
[1767522115134,0.15889,3148.2,3146.8,0.70555342]
[1767522115629,0.15889,3148.2,3146.8,0.83826222]
[1767522118930,0.15889,3148.2,3146.9,0.1327088]
[1767522122137,0.86444342,3148.2,3146.9,0.1327088]
[1767522122538,0.13849761,3148.5,3146.5,0.14180505]
[1767522122539,0.70555342,3147.9,3146.5,0.14180505]
[1767522123540,0.86445342,3147.9,3146.5,0.14180505]
[1767522128237,0.70555342,3147.6,3146.5,0.14180505]
[1767522129241,0.86447342,3147.6,3146.5,0.00799924]
[1767522129432,6.86447342,3147.6,3146.5,0.00799924]
[1767522129843,0.15892,3147.5,3146.5,0.00799924]
[1767522133339,0.70555342,3147.3,3146.5,0.00799924]
[1767522134452,0.86448342,3147.3,3145.7,0.83935923]
[1767522134755,0.70555342,3147.0,3145.7,0.13380581]
[1767522135351,0.70555342,3147.0,3145.7,0.13760413]
[1767522135556,0.70555342,3147.0,3146.0,0.00476636]
[1767522136451,0.70555342,3147.1,3146.0,0.00476636]
[1767522137456,0.15894,3147.2,3146.0,0.00476636]
[1767522145955,0.15894,3147.2,3146.0,0.13857217]
[1767522150260,0.15894,3147.2,3146.5,0.70555342]
[1767522150862,0.15894,3147.2,3146.3,0.14044828]
[1767522154869,0.15894,3147.2,3146.0,0.00476636]
[1767522155064,0.15894,3147.2,3146.0,0.14089621]
[1767522156679,0.15894,3147.1,3146.0,0.14089621]
[1767522161386,0.15891,3147.8,3146.4,0.70586847]
[1767522161578,0.15891,3147.8,3146.5,0.13612985]
[1767522176590,0.15891,3147.7,3146.5,0.13612985]
[1767522179885,0.70586847,3147.9,3146.5,0.13612985]
[1767522180085,0.70586847,3147.9,3146.0,0.00476636]
[1767522180086,0.15893,3147.4,3146.1,0.13612985]
[1767522185897,0.15893,3147.3,3146.1,0.13612985]
[1767522187489,0.15894,3147.2,3146.1,0.13612985]
[1767522195598,0.15895,3147.1,3146.1,0.13612985]
[1767522197697,0.12586961,3147.8,3146.1,0.13612985]
[1767522198002,0.15895,3147.0,3146.0,0.00476636]
[1767522202902,0.15897,3146.7,3146.0,0.00476636]
[1767522211714,0.15894,3147.1,3146.0,0.00476636]
[1767522219017,0.15895,3147.0,3146.0,0.00476636]
[1767522219319,0.15895,3146.9,3146.0,0.00476636]
[1767522219721,0.15896,3146.8,3146.0,0.00476636]
[1767522224432,0.70588582,3146.7,3146.0,0.00476636]
[1767522224737,0.86484582,3146.7,3146.0,0.00476636]
[1767522228537,0.70588582,3146.4,3145.7,0.00379832]
[1767522229638,0.70588582,3146.4,3145.7,0.00856468]
[1767522231031,0.86486582,3146.4,3145.7,0.00856468]
[1767522233341,0.15899,3146.3,3144.7,0.14364723]
[1767522233538,0.70588582,3146.4,3144.7,0.14364723]
[1767522233539,0.70588582,3146.1,3144.7,0.14364723]
[1767522234232,0.70588582,3146.1,3144.7,0.84953305]
[1767522234437,0.00272765,3146.1,3145.1,0.00476636]
[1767522237347,0.00476636,3145.9,3145.1,0.00476636]
[1767522241145,0.70588582,3145.8,3145.1,0.00476636]
[1767522241339,0.86489582,3145.8,3144.7,0.00333823]
[1767522241844,0.15901,3145.7,3144.7,0.00333823]
[1767522242450,0.15901,3145.7,3144.9,0.00476636]
[1767522243940,0.15902,3145.6,3144.9,0.00476636]
[1767522256157,0.86491582,3145.5,3144.7,0.00333823]
[1767522257056,0.15903,3145.4,3144.7,0.00333823]
[1767522285873,0.15903,3145.3,3144.7,0.00333823]
[1767522286180,0.15903,3145.3,3144.3,0.13443391]
[1767522286381,0.15903,3145.3,3143.8,0.13916945]
[1767522286977,0.15903,3145.3,3143.8,0.14160321]
[1767522291586,0.15903,3145.3,3144.0,0.13916945]
[1767522297486,0.15904,3145.2,3144.0,0.13916945]
[1767522297685,0.15904,3145.2,3144.1,6.0]
[1767522298482,0.15904,3145.2,3144.3,0.00476636]
[1767522300200,0.15904,3145.2,3144.3,6.14012329]
[1767522300498,0.15905,3145.0,3144.3,0.00476636]
[1767522301803,0.15906,3144.8,3143.8,0.00243376]
[1767522305109,0.15906,3144.8,3143.8,0.13779069]
[1767522317223,0.15906,3144.8,3144.0,0.00476636]
[1767522327019,3.59472951,3145.5,3143.8,0.00243376]
[1767522327020,0.84037341,3145.0,3143.8,0.00243376]
[1767522327220,0.15907,3144.6,3143.8,0.00243376]
[1767522327619,0.15907,3144.5,3143.8,0.00243376]
[1767522329725,4.391,3145.3,3143.8,0.00243376]
[1767522329726,0.15905,3145.1,3143.8,0.00243376]
[1767522329920,0.15905,3145.1,3143.8,0.13779069]
[1767522332836,0.13122138,3145.3,3143.8,0.13779069]
[1767522333433,0.15906,3144.9,3143.8,0.00243376]
[1767522333734,0.15907,3144.7,3143.8,0.00243376]
[1767522334525,0.15907,3144.6,3143.8,0.00243376]
[1767522342353,0.86601629,3144.6,3143.8,0.00243376]
[1767522347859,0.15907,3144.6,3143.8,0.00243376]
[1767522348057,4.389,3145.1,3143.9,0.00317764]
[1767522348257,0.15905,3145.0,3143.9,0.00317764]
[1767522352761,0.86599629,3145.0,3143.9,0.00317764]
[1767522352960,0.15905,3144.9,3143.9,0.00317764]
[1767522355856,0.15906,3144.8,3143.9,0.00317764]
[1767522356865,0.15906,3144.7,3143.9,0.00317764]
[1767522357664,0.86600629,3144.7,3143.8,0.00243376]
[1767522358564,0.86600629,3144.7,3143.1,0.14239832]
[1767522359066,0.00476636,3144.2,3143.1,0.14239832]
[1767522359262,0.00049784,3144.2,3143.4,0.14239832]
[1767522359466,0.00049784,3144.2,3143.4,0.14633728]
[1767522360166,0.00049784,3144.2,3143.4,6.14633728]
[1767522360367,0.00049784,3144.2,3143.5,0.1450683]
[1767522363566,0.00049784,3144.2,3143.5,0.14933681]
[1767522369184,0.86600629,3144.7,3143.5,0.14933681]
[1767522370282,0.00476636,3144.4,3143.5,0.14933681]
[1767522376683,0.00476636,3144.4,3143.8,0.1450683]
[1767522376986,0.15904,3145.2,3143.8,0.1450683]
[1767522377178,0.86598629,3145.2,3143.8,0.1450683]
[1767522377886,0.00476636,3144.8,3143.8,0.1450683]
[1767522394594,0.71171265,3144.8,3143.8,0.1450683]
[1767522400500,0.00476636,3144.8,3143.8,0.1450683]
[1767522401104,0.16382636,3144.8,3143.8,0.1450683]
[1767522402902,0.15907,3144.7,3143.5,0.00426851]
[1767522403200,0.15907,3144.7,3143.5,0.13767982]
[1767522414598,0.71179029,3144.8,3143.5,0.13767982]
[1767522414806,6.71179029,3144.8,3143.5,0.13767982]
[1767522415407,0.15908,3144.5,3143.5,0.13767982]
[1767522415709,0.15908,3144.4,3143.5,0.00426851]
[1767522417309,0.15909,3144.3,3143.5,0.00426851]
[1767522426012,0.1591,3144.0,3143.0,0.14294903]
[1767522427206,0.1591,3144.0,3143.0,0.14657481]
[1767522429216,0.1591,3144.0,3143.3,0.14294903]
[1767522434225,0.15907,3144.6,3143.3,0.14294903]
[1767522434518,0.15907,3144.5,3143.3,0.14294903]
[1767522435723,0.15907,3144.5,3143.4,0.14294903]
[1767522436124,0.00476636,3144.8,3143.4,0.14294903]
[1767522437719,0.00476636,3144.8,3143.6,0.14294903]
[1767522439919,0.00476636,3144.8,3143.7,0.14294903]
[1767522441717,0.15902,3145.7,3143.9,0.14294903]
[1767522442925,0.00476636,3145.1,3143.9,0.14294903]
[1767522445532,0.00476636,3145.1,3144.0,0.14294903]
[1767522445719,0.15902,3145.6,3144.0,0.14294903]
[1767522446735,0.00476636,3145.1,3144.0,0.14294903]
[1767522450831,0.00476636,3145.1,3144.2,0.1323567]
[1767522455937,0.00476636,3145.1,3144.3,0.13974467]
[1767522461141,0.15902,3145.6,3144.3,0.13974467]
[1767522462337,0.00476636,3145.3,3144.3,0.13974467]
[1767522462639,0.00476636,3145.3,3144.6,0.13974467]
[1767522469443,0.15902,3145.6,3144.6,0.13974467]
[1767522470435,1.61764885,3146.1,3144.8,0.14451103]
[1767522470637,0.00476636,3145.4,3144.8,0.14451103]
[1767522476248,0.00476636,3145.4,3144.8,0.00476636]
[1767522481852,0.00476636,3145.4,3144.8,0.1499108]
[1767522491156,0.00049857,3145.4,3144.8,0.1499108]
[1767522510077,0.00049857,3145.4,3144.8,0.00476636]
[1767522514976,6.00049857,3145.4,3144.8,0.00476636]
[1767522517582,6.15952857,3145.4,3144.8,0.00476636]
[1767522524289,0.15952857,3145.4,3144.8,0.00476636]
[1767522525088,6.15952857,3145.4,3144.8,0.00476636]
[1767522525586,6.15952857,3145.4,3144.4,0.14514444]
[1767522525786,0.15952857,3145.4,3144.4,0.14514444]
[1767522526688,0.15952857,3145.4,3144.6,0.00476636]
[1767522541389,0.15903,3145.3,3144.6,0.00476636]
[1767522541590,0.15903,3145.3,3144.0,5.7380963]
[1767522541797,0.15903,3145.3,3144.1,0.13476613]
[1767522542099,0.00049857,3145.4,3144.0,5.60333017]
[1767522542100,0.15905,3145.1,3144.0,5.60333017]
[1767522542489,0.15905,3145.1,3143.7,0.13476613]
[1767522542689,0.15905,3145.1,3144.2,0.00476636]
[1767522544998,0.15905,3145.1,3143.7,0.13476613]
[1767522545198,0.15905,3145.0,3143.7,0.13476613]
[1767522546103,0.15905,3145.0,3144.0,0.00476636]
[1767522554908,0.15905,3144.9,3143.3,0.13476613]
[1767522556009,0.15905,3144.9,3143.8,0.00476636]
[1767522557602,0.15905,3144.9,3143.8,0.13953249]
[1767522566816,0.15905,3144.9,3143.8,0.00476636]
[1767522567722,0.15906,3144.8,3143.8,0.00476636]
[1767522577228,0.15907,3144.6,3143.8,0.00476636]
[1767522577522,0.15907,3144.5,3143.5,5.60333017]
[1767522578121,0.15907,3144.5,3143.1,5.73807323]
[1767522578820,0.15907,3144.5,3143.2,0.13474306]
[1767522579223,0.15908,3144.4,3143.2,0.13474306]
[1767522579432,0.15909,3144.3,3143.5,0.00476563]
[1767522579633,0.15909,3144.2,3143.2,0.13474306]
[1767522588024,0.15909,3144.2,3143.3,0.13474306]
[1767522588228,0.15906,3144.8,3143.3,0.13474306]
[1767522588420,0.15906,3144.7,3143.3,0.13474306]
[1767522588629,0.70704614,3144.6,3143.3,0.13474306]
[1767522590729,0.15906,3144.7,3143.6,0.13474306]
[1767522594729,0.70704614,3145.2,3143.6,0.13474306]
[1767522595532,0.86608614,3145.2,3143.6,0.13474306]
[1767522596534,0.86608614,3145.2,3143.7,0.13474306]
[1767522598737,0.15904,3145.1,3143.7,0.13474306]
[1767522600434,0.70704614,3144.9,3143.7,0.13474306]
[1767522601129,0.70704614,3144.9,3143.1,6.46951631]
[1767522601323,0.70704614,3144.6,3143.2,0.14035658]
[1767522601528,0.70704614,3144.6,3143.3,0.14035658]
[1767522602442,0.70704614,3144.9,3143.3,0.14035658]
[1767522602630,0.70704614,3144.9,3143.5,0.14035658]
[1767522603936,0.15905,3145.0,3143.5,0.14035658]
[1767522605432,0.70704614,3144.9,3143.5,0.14035658]
[1767522606338,0.86609614,3144.9,3143.5,0.14035658]
[1767522606634,0.70704614,3144.6,3143.5,0.14035658]
[1767522607936,0.70704614,3144.3,3143.2,0.14035658]
[1767522608835,0.70704614,3144.3,3143.0,5.60695595]
[1767522608836,0.70704614,3144.0,3143.0,5.60695595]
[1767522609239,0.00476636,3143.8,3143.0,5.60695595]
[1767522609537,0.00789362,3143.8,3143.0,0.00362578]
[1767522610530,0.00789362,3143.8,3143.0,0.14398236]
[1767522610736,0.15907,3144.7,3143.5,0.84740272]
[1767522610937,0.15907,3144.7,3143.5,0.14035658]
[1767522611639,0.1615881,3144.7,3143.5,0.14035658]
[1767522611840,0.00476636,3144.4,3143.5,0.14035658]
[1767522613242,0.00476636,3144.4,3143.1,0.14035658]
[1767522620944,0.00476636,3144.4,3143.2,0.14035658]
[1767522621642,0.00476636,3144.4,3143.5,0.14035658]
[1767522626058,0.00476636,3144.4,3143.6,0.00476636]
[1767522641960,6.00476636,3144.4,3143.6,0.00476636]
[1767522644469,0.00476636,3144.4,3143.6,0.00476636]
[1767522647172,6.00476636,3144.4,3143.6,0.00476636]
[1767522651564,0.00476636,3144.4,3143.6,0.14506541]
[1767522660078,0.00051692,3144.4,3143.6,0.14506541]
[1767522669886,0.15907,3144.5,3143.6,0.14506541]
[1767522675796,0.00476636,3144.4,3143.6,0.14506541]
[1767522677990,0.0025181,3144.7,3143.6,6.14506541]
[1767522678293,0.15905,3145.0,3143.7,0.13638815]
[1767522678796,0.15902,3145.6,3143.9,0.13638815]
[1767522679291,0.00476636,3145.1,3143.9,0.13638815]
[1767522680295,0.00476636,3145.1,3144.0,0.13638815]
[1767522680692,0.16157375,3145.6,3144.2,0.13638815]
[1767522681790,0.00476636,3145.2,3144.2,0.13638815]
[1767522687201,0.00476636,3145.2,3144.3,0.13638815]
[1767522695310,0.15899,3146.3,3144.5,0.14471443]
[1767522695502,0.15899,3146.3,3144.7,0.14471443]
[1767522696309,0.16229179,3146.3,3145.2,0.00476636]
[1767522697814,0.00476636,3146.1,3145.2,0.00476636]
[1767522700110,0.00476636,3146.1,3145.2,0.14948079]
[1767522721519,0.00476636,3146.1,3145.2,0.00476636]
[1767522722223,0.00476636,3146.1,3145.3,0.13942045]
[1767522722418,0.00476636,3146.1,3145.3,0.1433279]
[1767522722621,0.6357,3146.0,3145.3,0.1433279]
[1767522731737,0.11875261,3146.0,3145.3,0.1433279]
[1767522743638,0.00476636,3146.1,3145.3,0.1433279]
[1767522744443,0.00330179,3146.3,3145.3,0.1433279]
[1767522746149,0.00317763,3146.1,3145.3,0.1433279]
[1767522747149,0.00317763,3146.1,3145.3,6.1433279]
[1767522747952,0.00317763,3146.1,3145.4,0.13942045]
[1767522749042,0.15894,3147.2,3145.6,0.13942045]
[1767522749639,0.70627108,3147.0,3145.6,0.13942045]
[1767522750047,0.00331617,3147.0,3145.6,0.13942045]
[1767522751747,0.00331617,3147.0,3145.8,0.84210193]
[1767522754941,0.00331617,3147.0,3145.8,0.13583085]
[1767522761859,0.16226617,3147.0,3145.8,0.13583085]
[1767522762063,0.16226617,3147.0,3145.5,0.84095824]
[1767522762453,0.16226617,3147.0,3145.6,0.13468716]
[1767522763057,0.00331617,3147.0,3145.6,0.13468716]
[1767522763256,0.70627108,3146.5,3145.3,0.00390745]
[1767522764862,0.70627108,3146.5,3145.4,0.13468716]
[1767522765056,0.00331617,3147.0,3145.9,0.13468716]
[1767522765459,0.16226617,3147.0,3145.6,0.70627108]
[1767522765659,0.16226617,3147.0,3145.5,0.13468716]
[1767522765862,0.29932175,3147.0,3145.5,0.13468716]
[1767522769073,0.16226617,3147.0,3145.5,0.13468716]
[1767522778378,0.16226617,3147.0,3145.6,0.13468716]
[1767522786377,0.00331617,3147.0,3145.7,0.13451255]
[1767522787770,0.00331617,3147.0,3145.9,0.13451255]
[1767522787976,0.15892,3147.5,3145.9,0.13451255]
[1767522788985,0.16149804,3147.5,3145.9,0.13451255]
[1767522800990,0.30455606,3147.5,3145.9,0.13451255]
[1767522807404,0.14305802,3147.4,3145.9,0.13451255]
[1767522808305,0.14305802,3147.4,3146.0,9.337]
[1767522808506,0.14305802,3146.5,3145.8,5.60333017]
[1767522808800,0.14305802,3147.0,3145.8,5.60333017]
[1767522808997,0.14305802,3147.0,3145.5,7.50176867]
[1767522809196,0.14305802,3147.0,3145.5,0.13451255]
[1767522812524,0.14305802,3147.0,3145.6,9.357]
[1767522814010,0.14109326,3146.9,3145.7,9.368]
[1767522814205,0.14109326,3146.9,3145.3,0.00390745]
[1767522814206,0.14109326,3146.8,3145.6,9.37]
[1767522814400,0.14109326,3146.3,3145.3,4.00260638]
[1767522814602,0.14109326,3146.3,3145.3,0.00390745]
[1767522814909,0.30008326,3146.2,3145.3,0.00390745]
[1767522819398,0.14109326,3146.1,3145.3,0.00390745]
[1767522821618,0.15899,3146.2,3145.3,0.00390745]
[1767522821914,0.14109326,3146.5,3145.3,0.00390745]
[1767522825221,0.14109326,3146.3,3145.3,0.00390745]
[1767522828921,0.15898,3146.4,3145.3,0.00390745]
[1767522829118,0.15898,3146.4,3145.3,0.71010003]
[1767522833018,0.15898,3146.4,3145.3,0.00390745]
[1767522839227,0.15898,3146.4,3145.3,4.00260638]
[1767522840229,0.14109326,3146.7,3145.3,4.00260638]
[1767522841723,0.14109326,3146.7,3145.3,0.00390745]
[1767522841913,0.75058938,3147.3,3145.3,0.00390745]
[1767522841914,0.30195037,3146.5,3145.3,0.00390745]
[1767522842118,0.14297037,3146.2,3145.3,0.00390745]
[1767522848521,0.86518258,3146.1,3145.0,3.73778822]
[1767522848837,0.70619258,3145.8,3145.0,3.73778822]
[1767522849126,0.70619258,3146.1,3144.2,1.23727611]
[1767522849337,0.70619258,3146.1,3144.2,0.70619258]
[1767522849533,0.15901,3145.8,3144.6,0.13873979]
[1767522849735,0.15901,3145.8,3145.0,0.00476636]
[1767522850138,0.15901,3145.8,3145.0,0.14066285]
[1767522852237,0.00476636,3145.7,3145.0,0.00476636]
[1767522852539,0.70619258,3145.6,3144.6,0.0028433]
[1767522853635,0.70619258,3145.6,3144.8,0.00476636]
[1767522854832,0.00476636,3145.7,3144.8,0.00476636]
[1767522855136,0.00476636,3145.7,3144.8,0.14066285]
[1767522857231,0.00476636,3145.7,3145.1,0.13589649]
[1767522875447,0.15899,3146.2,3145.3,0.14191921]
[1767522877154,0.15897,3146.6,3145.3,0.14191921]
[1767522881368,0.15897,3146.6,3145.6,0.14191921]
[1767522884062,0.00476636,3146.4,3145.6,0.14191921]
[1767522885871,0.16374636,3146.4,3145.3,4.14032483]
[1767522886070,0.16374636,3146.4,3145.3,0.14191921]
[1767522890972,0.16374636,3146.4,3145.4,0.14191921]
[1767522903781,0.15898,3146.3,3145.4,0.14191921]
[1767522903983,0.15898,3146.3,3145.1,0.13297983]
[1767522911185,0.15898,3146.3,3145.3,3.99840562]
[1767522914994,0.15898,3146.3,3145.3,4.13138545]
[1767522915590,0.15898,3146.3,3145.4,0.13297983]
[1767522920804,0.15898,3146.3,3145.4,4.13138545]
[1767522924602,0.00476636,3146.4,3145.5,0.13297983]
[1767522927294,0.00476636,3146.4,3145.6,0.13297983]
[1767522930604,0.159,3146.0,3145.2,5.26153859]
[1767522930904,0.159,3146.0,3144.9,0.13109112]
[1767522932812,0.15901,3145.9,3144.9,0.13109112]
[1767522933102,0.15901,3145.8,3144.9,0.13109112]
[1767522934611,0.15901,3145.8,3144.8,0.00476636]
[1767522939414,0.15902,3145.5,3144.1,0.14205339]
[1767522940410,0.15902,3145.5,3144.1,0.14554394]
[1767522940614,0.15902,3145.5,3144.5,0.00476636]
[1767522945419,0.15903,3145.4,3144.5,0.00476636]
[1767522946820,0.15903,3145.3,3144.5,0.00476636]
[1767522947721,0.15904,3145.2,3144.1,0.00349055]
[1767522947923,0.16212674,3145.2,3144.1,0.00349055]
[1767522949123,0.16212674,3145.2,3144.3,0.00476636]
[1767522966640,0.16212674,3145.2,3144.3,0.14188585]
[1767522966836,0.00308674,3145.2,3144.4,0.13711949]
[1767522969342,0.00308674,3145.2,3144.5,6.0]
[1767522969540,0.00308674,3145.2,3144.6,0.13711949]
[1767522971442,0.15903,3145.5,3144.6,0.13711949]
[1767522972346,0.70676544,3146.2,3144.7,0.13711949]
[1767522972539,0.159,3146.0,3144.7,0.13711949]
[1767522982250,0.159,3145.9,3144.7,0.13711949]
[1767522985558,0.15902,3145.7,3144.7,0.13711949]
[1767522988060,0.15902,3145.6,3144.7,0.13711949]
[1767522988265,0.86579544,3145.4,3144.3,0.14188585]
[1767522988455,0.15903,3145.4,3144.3,0.14188585]
[1767522995755,0.15903,3145.4,3144.5,0.1446581]
[1767523001374,0.15903,3145.4,3144.5,4.14804741]
[1767523002876,0.15903,3145.4,3144.6,0.1446581]
[1767523016380,4.315,3146.1,3144.6,0.1446581]
[1767523016579,0.15904,3145.1,3144.3,4.00815567]
[1767523016778,0.15904,3145.1,3144.3,0.00476636]
[1767523022493,0.15905,3145.0,3144.3,0.00476636]
[1767523032603,3.181,3145.7,3144.3,0.00476636]
[1767523032798,0.15905,3144.9,3144.3,0.00476636]
[1767523033495,0.15908,3144.4,3144.1,5.5e-07]
[1767523033798,0.15908,3144.4,3143.4,0.13427699]
[1767523034604,0.00476636,3144.2,3143.4,0.13758957]
[1767523035789,0.00476636,3144.2,3143.5,0.00476636]
[1767523036395,0.00476636,3144.2,3143.5,0.13904335]
[1767523038692,0.00476636,3144.2,3143.5,0.00476636]
[1767523040903,0.00476636,3144.2,3143.5,0.13904335]
[1767523043600,0.00476636,3144.2,3143.5,0.00476636]
[1767523043806,0.1591,3144.1,3143.5,0.00476636]
[1767523045709,0.1591,3144.1,3143.5,0.13904335]
[1767523047100,0.00476636,3144.2,3143.5,0.13904335]
[1767523051809,0.15908,3144.5,3143.6,0.14443662]
[1767523052313,4.311,3145.0,3143.6,0.14443662]
[1767523052617,4.47005,3145.0,3143.6,0.14443662]
[1767523052913,0.00476636,3144.6,3143.6,0.14443662]
[1767523064514,0.16383636,3144.6,3143.6,0.14443662]
[1767523070924,0.16383636,3144.6,3143.7,0.13296439]
[1767523080533,0.16383636,3144.6,3143.7,4.1363537]
[1767523081523,0.16383636,3144.6,3143.8,0.13940647]
[1767523092538,0.00476636,3144.6,3143.8,0.13940647]
[1767523092739,0.15904,3145.1,3143.9,0.13940647]
[1767523093138,0.15904,3145.1,3143.9,4.14279578]
[1767523093328,0.15905,3145.0,3143.9,4.14279578]
[1767523093531,0.15905,3145.0,3143.9,0.13940647]
[1767523093840,0.15905,3145.0,3143.9,4.14279578]
[1767523094240,0.15905,3145.0,3143.9,0.13940647]
[1767523095242,0.00476636,3144.8,3143.9,0.13940647]
[1767523096635,0.00476636,3144.8,3143.9,4.14279578]
[1767523098752,0.00476636,3144.8,3144.0,0.13940647]
[1767523151990,0.15903,3145.5,3144.3,0.13412324]
[1767523152500,0.15903,3145.5,3144.4,0.13412324]
[1767523152891,0.15903,3145.5,3144.6,0.13412324]
[1767523181420,0.15903,3145.5,3144.7,0.13411854]
[1767523187827,0.15903,3145.5,3144.5,4.00338931]
[1767523188421,0.15903,3145.5,3144.5,4.13719197]
[1767523192322,0.15903,3145.5,3144.6,0.13380266]
[1767523193027,0.00476636,3145.4,3144.6,0.13380266]
[1767523195533,0.00476636,3145.4,3144.7,0.13380266]
[1767523209937,0.7621407,3146.1,3144.7,0.13380266]
[1767523211632,0.15903,3145.5,3144.7,0.13380266]
[1767523214641,0.15903,3145.5,3144.8,0.00476636]
[1767523214849,0.15903,3145.5,3144.8,0.13963274]
[1767523226758,0.15899,3146.1,3144.8,0.13963274]
[1767523227448,0.6357,3146.0,3145.0,4.00338931]
[1767523227649,0.6357,3146.0,3145.1,0.13486638]
[1767523227859,0.6357,3146.0,3145.2,4.13825569]
[1767523228055,0.6357,3146.0,3145.3,0.13486638]
[1767523230359,0.6357,3146.0,3145.4,0.13761705]
[1767523230745,0.61013808,3146.0,3145.4,0.13761705]
[1767523234860,0.61013808,3146.0,3145.2,4.00338931]
[1767523234861,0.46463026,3146.0,3145.6,0.13925989]
[1767523235061,0.46463026,3146.0,3145.5,6.0]
[1767523235062,0.46463026,3146.0,3145.2,4.1426492]
[1767523235260,0.46463026,3146.0,3145.3,0.13925989]
[1767523236753,0.46463026,3146.0,3145.4,6.0]
[1767523236952,0.15897,3146.6,3145.5,0.13925989]
[1767523237349,0.14208798,3147.0,3145.5,4.1426492]
[1767523237954,0.14208798,3146.9,3145.5,4.00338931]
[1767523238160,0.14208798,3146.8,3145.5,4.00338931]
[1767523239462,0.14208798,3146.8,3145.2,4.00338931]
[1767523239463,0.14208798,3146.4,3145.2,4.00338931]
[1767523239652,0.14208798,3145.9,3144.9,4.00338931]
[1767523240059,0.14208798,3145.9,3144.8,0.00476636]
[1767523248160,3.18,3146.5,3144.8,0.00476636]
[1767523248161,0.14208798,3145.7,3144.8,0.00476636]
[1767523248366,0.30109798,3145.7,3144.8,0.00476636]
[1767523248563,0.14208798,3145.6,3144.8,0.00476636]
[1767523260882,0.15901,3145.7,3144.8,0.00476636]
[1767523290919,0.15901,3145.7,3144.8,4.00815567]
[1767523291421,0.15901,3145.7,3144.8,0.00476636]
[1767523304938,0.29936106,3145.7,3144.8,0.00476636]
[1767523305241,0.14035106,3145.6,3144.8,0.00476636]
[1767523330161,0.29937106,3145.6,3144.7,3.71239751]
[1767523330368,0.15903,3145.4,3144.0,10.18575257]
[1767523330559,0.15903,3145.4,3144.1,0.14475257]
[1767523331559,0.15903,3145.4,3144.4,0.00476636]
[1767523335069,0.15903,3145.4,3144.4,0.14951893]
[1767523335257,3.76807225,3147.2,3144.4,0.14951893]
[1767523335464,0.159,3146.0,3144.4,0.14951893]